bitfinex-derivatives/quotes_BNBF0:USTF0_20250424
["timestamp","ask_amount","ask_price","bid_price","bid_amount"]
[1745460890964,0.28672181,608.27,605.96,0.30279046]
[1745460891171,0.28672181,608.27,605.94,0.30279046]
[1745460891473,0.28672181,608.27,605.95,1.316]
[1745460891666,0.28672181,608.27,605.96,0.30279046]
[1745460892368,1.54465629,608.27,605.96,0.30279046]
[1745460892671,1.25793448,608.27,605.96,0.30279046]
[1745460892871,0.28674662,608.26,605.96,0.30279046]
[1745460895072,0.28674662,608.26,605.95,1.316]
[1745460895367,0.28674662,608.26,605.96,0.3027799]
[1745460895570,1.25793448,608.29,605.96,0.3027799]
[1745460895873,0.28674426,608.25,605.96,0.3027799]
[1745460898073,0.28674426,608.25,605.95,1.316]
[1745460898574,1.25793448,608.3,605.95,1.316]
[1745460899477,1.25793448,608.12,605.95,1.316]
[1745460900077,1.25793448,608.12,605.96,1.23]
[1745460901779,1.25793448,608.12,605.92,0.994]
[1745460901975,1.25793448,608.12,605.7,0.30298496]
[1745460902277,2.14023575,608.53,605.7,0.30298496]
[1745460902475,1.25793448,608.74,605.71,0.30298496]
[1745460902680,0.28689437,608.11,605.72,0.30298496]
[1745460902880,1.25793448,608.74,605.72,0.30298496]
[1745460903681,0.2868187,608.73,605.72,0.30298496]
[1745460904583,1.25793448,607.74,605.72,0.30298496]
[1745460904882,1.25793448,607.74,605.73,0.30298496]
[1745460905075,1.25793448,607.74,605.74,0.30298496]
[1745460905381,1.25793448,607.74,605.75,0.30298496]
[1745460905582,1.25793448,607.74,605.72,0.30298496]
[1745460905782,1.25793448,607.74,605.73,0.30298496]
[1745460906083,1.25793448,607.74,605.74,1.63298496]
[1745460906277,1.25793448,607.74,605.75,0.30298496]
[1745460906480,1.25793448,607.74,605.75,1.74298496]
[1745460906678,1.25793448,607.74,605.76,0.30298496]
[1745460906879,1.25793448,607.75,605.76,1.79998496]
[1745460907084,1.25793448,607.75,605.77,0.30298496]
[1745460907385,1.25793448,607.75,605.77,1.27498496]
[1745460907581,1.25793448,607.75,605.78,0.30298496]
[1745460908881,0.2869334,607.74,605.78,0.30298496]
[1745460910285,0.2869334,607.74,605.77,0.972]
[1745460910486,0.2869334,607.74,605.78,0.30298655]
[1745460910688,1.25793448,607.75,605.78,0.30298655]
[1745460911789,0.2869334,607.74,605.78,0.30298655]
[1745460912087,0.2869334,607.74,605.79,0.30298948]
[1745460912280,0.2869334,607.74,605.78,0.30298948]
[1745460912484,0.2869334,607.74,605.79,0.30298948]
[1745460912681,0.2869334,607.74,605.8,0.30298948]
[1745460912985,0.2869334,607.74,605.81,0.30298948]
[1745460913186,0.2869334,607.74,605.78,0.30298948]
[1745460913382,0.2869334,607.74,605.79,0.30298948]
[1745460913583,1.25793448,607.79,605.8,0.30298948]
[1745460913882,1.25793448,607.79,605.81,0.30298948]
[1745460914087,1.25793448,607.79,605.78,0.30298948]
[1745460914386,1.25793448,607.79,605.79,0.30298948]
[1745460914590,1.25793448,607.66,605.78,0.30298948]
[1745460914781,1.25793448,607.66,605.79,0.30298948]
[1745460914985,1.25793448,607.66,605.78,0.30298948]
[1745460915283,1.25793448,607.66,605.79,0.30299236]
[1745460915483,1.25793448,607.66,605.8,0.30299236]
[1745460915687,1.25793448,607.66,605.78,0.30299236]
[1745460915886,1.25793448,607.66,605.79,0.30299236]
[1745460916086,1.25793448,607.66,605.78,0.30299236]
[1745460916587,1.25793448,607.72,605.78,0.30299236]
[1745460917888,0.28693695,607.71,605.78,0.30299236]
[1745460918388,0.28693695,607.71,605.79,0.30298856]
[1745460918587,0.28693695,607.71,605.78,0.30298856]
[1745460919589,1.25793448,607.72,605.78,0.30298856]
[1745460919889,0.28693695,607.7,605.77,0.972]
[1745460920090,0.28693695,607.7,605.78,0.30298873]
[1745460924094,0.28693695,607.7,605.77,0.972]
[1745460926793,0.28693695,607.7,605.77,1.975]
[1745460928191,0.28693695,607.7,605.77,3.536]
[1745460928697,1.25793448,607.95,605.77,3.536]
[1745460929897,1.25793448,608.08,605.77,3.536]
[1745460930093,0.28692394,607.94,605.77,3.536]
[1745460930293,1.25793448,608.08,605.77,3.536]
[1745460931591,0.28690856,608.07,605.77,3.536]
[1745460932699,1.25793448,607.95,605.77,3.536]
[1745460935501,1.25793448,607.83,605.77,3.536]
[1745460935899,0.28693813,607.82,605.77,3.536]
[1745460937595,1.25793448,607.83,605.77,3.536]
[1745460937999,0.28693813,607.82,605.77,3.536]
[1745460938501,1.25793448,607.65,605.77,3.536]
[1745460940902,0.28699256,607.64,605.77,3.536]
[1745460941998,1.25793448,607.51,605.77,3.536]
[1745460945005,0.28699256,607.64,605.77,4.574]
[1745460949203,1.25793448,607.27,605.77,4.574]
[1745460949510,1.25793448,607.27,605.77,1.038]
[1745460954711,0.28708489,607.26,605.77,1.038]
[1745460955217,1.25793448,607.25,605.77,1.038]
[1745460956913,0.28712279,607.24,605.77,1.038]
[1745460958613,1.25793448,607.34,605.77,1.038]
[1745460959915,0.2871145,607.33,605.77,1.038]
[1745460961614,1.25793448,607.79,605.77,1.038]
[1745460962917,0.28705884,607.78,605.77,1.038]
[1745460964637,1.25793448,608.06,605.77,1.038]
[1745460966019,0.28702688,608.05,605.77,1.038]
[1745460966813,1.25793448,608.03,605.77,1.038]
[1745460968819,0.28702096,608.02,605.77,1.038]
[1745460969319,1.25793448,607.32,605.77,1.038]
[1745460972220,1.25793448,607.27,605.77,1.038]
[1745460974924,0.28706831,607.26,605.77,1.038]
[1745460975726,1.25793448,607.17,605.77,1.038]
[1745460976025,1.25793448,607.17,605.77,2.602]
[1745460977125,1.25793448,607.17,605.77,3.862]
[1745460977922,1.25793448,607.1,605.77,3.862]
[1745460981724,1.25793448,607.28,605.77,3.862]
[1745460982228,0.28701031,607.27,605.77,3.862]
[1745460982626,1.25793448,607.28,605.77,3.862]
[1745460983929,0.28701031,607.27,605.77,3.862]
[1745460985632,1.25793448,607.84,605.77,3.862]
[1745460986037,0.28694405,607.26,605.77,3.862]
[1745460986237,1.25793448,607.87,605.77,3.862]
[1745460987537,0.2869405,607.86,605.77,3.862]
[1745460988638,1.25793448,607.87,605.77,3.862]
[1745460988838,0.28693577,607.85,605.77,3.862]
[1745460991639,1.25793448,607.92,605.77,3.862]
[1745460992057,0.28692985,607.84,605.77,3.862]
[1745460992344,1.25793448,607.92,605.77,3.862]
[1745460993342,1.25793448,607.93,605.77,3.862]
[1745460993640,0.28692275,607.91,605.77,3.862]
[1745460994638,1.25793448,607.93,605.77,3.862]
[1745460995037,0.2869334,607.9,605.77,3.862]
[1745460997141,1.25793448,607.82,605.77,3.862]
[1745460998643,1.25793448,607.82,605.77,1.038]
[1745460998838,1.25793448,607.82,604.89,1.03538227]
[1745460999043,0.28696061,607.81,605.58,0.28696061]
[1745460999237,0.28696061,607.81,605.59,0.30305434]
[1745460999446,0.28696061,607.81,605.6,0.30305434]
[1745460999642,1.25793448,607.63,604.9,0.30305434]
[1745460999942,1.25793448,607.63,604.91,0.30305453]
[1745461000142,1.25793448,607.63,604.74,1.03538227]
[1745461000341,1.25793448,607.63,604.75,0.30305381]
[1745461000538,1.25793448,607.63,604.74,1.03538227]
[1745461000539,1.25793448,607.63,604.76,0.30305381]
[1745461000743,1.25793448,607.63,604.77,0.30305381]
[1745461000942,1.25793448,607.63,604.78,0.30305381]
[1745461001143,1.25793448,607.63,604.79,0.30305381]
[1745461001444,1.25793448,607.63,604.8,0.30305381]
[1745461001638,2.14023575,608.0,604.81,1.33843608]
[1745461001639,1.25793448,607.53,604.81,1.33843608]
[1745461001942,1.25793448,607.53,604.82,0.30305381]
[1745461002144,1.25793448,607.53,604.83,0.30305381]
[1745461002345,1.25793448,607.53,604.84,0.30305381]
[1745461002546,1.25793448,607.53,604.85,0.30305381]
[1745461002745,1.25793448,607.53,604.86,0.30305381]
[1745461003045,1.25793448,607.53,604.87,0.30305381]
[1745461003245,1.25793448,607.53,604.81,1.03538227]
[1745461003439,1.25793448,607.53,604.82,0.30304793]
[1745461003643,1.25793448,607.53,604.83,0.30304793]
[1745461003841,1.25793448,607.53,604.84,0.30304793]
[1745461004040,1.25793448,607.53,604.41,1.03538227]
[1745461004041,1.25793448,607.45,604.91,1.03538227]
[1745461004245,1.25793448,607.45,604.92,0.30304793]
[1745461004443,1.25793448,607.45,604.93,0.30304793]
[1745461004641,1.25793448,607.45,604.94,0.30304793]
[1745461004843,1.25793448,607.45,604.95,0.30304793]
[1745461005046,0.2870991,607.44,604.96,0.30304793]
[1745461005241,0.2870991,607.44,604.97,0.30304793]
[1745461005439,0.2870991,607.44,604.98,0.30304793]
[1745461005746,0.2870991,607.44,604.99,0.30304793]
[1745461005946,0.2870991,607.44,605.0,0.30304793]
[1745461006146,0.2870991,607.44,605.01,0.30304793]
[1745461006346,0.2870991,607.44,604.93,1.014]
[1745461006546,0.2870991,607.44,604.94,0.30306745]
[1745461006743,0.2870991,607.44,604.95,0.30306745]
[1745461006948,1.25793448,607.21,605.05,1.03538227]
[1745461007248,1.25793448,607.21,605.06,0.30306745]
[1745461007446,1.25793448,607.21,605.07,0.30306745]
[1745461007765,1.25793448,607.21,605.08,0.30306745]
[1745461007949,1.25793448,607.21,605.09,0.30306745]
[1745461008147,1.25793448,607.21,605.1,0.30306745]
[1745461008344,1.25793448,607.21,605.11,0.30306745]
[1745461008542,1.25793448,607.21,605.06,0.30306745]
[1745461008744,1.25793448,607.21,605.07,0.30306745]
[1745461008945,1.25793448,607.21,605.08,0.30306745]
[1745461009241,1.25793448,607.21,605.09,0.30306745]
[1745461009444,1.25793448,607.21,605.1,0.30306745]
[1745461009646,1.25793448,607.37,605.29,1.03538227]
[1745461009847,0.28714411,607.2,605.3,0.30306745]
[1745461010047,1.25793448,607.37,605.3,0.30306745]
[1745461010952,0.28709673,607.36,605.3,0.30306745]
[1745461011750,1.25793448,607.15,605.3,0.30306745]
[1745461011955,1.25793448,607.15,605.29,0.30306745]
[1745461012149,1.25793448,607.15,605.3,0.30306745]
[1745461012349,1.25793448,607.15,605.29,0.30306745]
[1745461013960,0.2871145,607.14,605.29,0.30306745]
[1745461014158,0.2871145,607.14,605.28,1.03538227]
[1745461014457,0.2871145,607.14,605.29,0.30309843]
[1745461014656,0.2871145,607.14,605.21,0.30309843]
[1745461014858,0.2871145,607.14,605.22,0.30309843]
[1745461015058,0.2871145,607.14,605.21,0.30309843]
[1745461015260,0.2871145,607.14,605.22,0.30309843]
[1745461015558,1.25793448,607.61,605.21,0.30309843]
[1745461015754,1.25793448,607.61,605.22,0.30309843]
[1745461015957,0.2870695,607.13,605.21,0.30309843]
[1745461016156,1.25793448,607.61,605.22,0.30309843]
[1745461016355,1.25793448,607.61,605.21,0.30309843]
[1745461016555,1.25793448,607.61,605.22,0.30309843]
[1745461016760,1.25793448,607.61,605.23,0.30309843]
[1745461017063,1.25793448,607.53,605.24,0.30309843]
[1745461017263,1.25793448,607.53,605.19,1.03538227]
[1745461017460,1.25793448,607.53,605.2,0.3030987]
[1745461019159,1.25793448,607.66,605.2,0.3030987]
[1745461019356,1.25793448,607.66,605.13,0.3030987]
[1745461019963,0.28707779,607.65,605.13,0.59017649]
[1745461020264,0.28707779,607.65,605.14,0.3030987]
[1745461020468,0.28707779,607.65,605.15,0.30310005]
[1745461020661,0.28707779,607.65,605.14,0.30310005]
[1745461020858,0.28707779,607.65,605.15,0.30310005]
[1745461021057,0.28707779,607.65,605.16,0.30310005]
[1745461021257,0.28707779,607.65,605.14,0.30310005]
[1745461021560,0.28707779,607.65,605.15,0.30309253]
[1745461021758,1.25793448,607.66,605.14,0.30309253]
[1745461022057,0.2870766,607.64,605.15,0.30309253]
[1745461024469,1.25793448,607.58,605.16,1.03538227]
[1745461024669,1.25793448,607.58,605.17,0.30313615]
[1745461025063,0.28709673,607.57,605.17,0.30313615]
[1745461026968,0.28709673,607.57,605.2,1.03538227]
[1745461026969,1.25793448,607.21,605.2,1.03538227]
[1745461027267,1.25793448,607.21,605.21,0.30313615]
[1745461027568,1.25793448,607.21,605.22,1.099]
[1745461027767,1.25793448,607.21,605.23,0.30313615]
[1745461027967,0.28713819,607.2,605.23,0.30313615]
[1745461028266,0.28713819,607.2,605.24,0.947]
[1745461028466,0.28713819,607.2,605.25,0.30313615]
[1745461030269,1.54507267,607.2,605.25,0.30313615]
[1745461030665,1.25793448,607.2,605.25,0.30313615]
[1745461031969,0.287137,607.19,605.26,1.466]
[1745461032169,0.287137,607.19,605.27,0.30313615]
[1745461032367,0.287137,607.19,605.26,1.466]
[1745461032571,0.287137,607.19,605.27,0.30313903]
[1745461033775,1.25793448,607.22,605.27,0.30313903]
[1745461034877,0.28710147,607.21,605.27,0.30313903]
[1745461036675,1.25793448,607.22,605.27,0.30313903]
[1745461037175,1.25793448,607.64,605.27,0.30313903]
[1745461037877,0.28704937,607.63,605.27,0.30313903]
[1745461039678,1.25793448,607.64,605.27,0.30313903]
[1745461039873,1.25793448,607.75,605.27,0.30313903]
[1745461040977,0.28707424,607.74,605.27,0.30313903]
[1745461041378,0.28707424,607.74,605.27,1.76413903]
[1745461041672,0.28707424,607.74,605.27,1.461]
[1745461041877,0.28707424,607.74,605.28,0.30314385]
[1745461042173,1.25793448,607.68,605.28,0.30314385]
[1745461043178,1.25793448,607.68,605.27,1.461]
[1745461043377,1.25793448,607.68,605.28,1.208]
[1745461043978,0.28708963,607.67,605.28,1.208]
[1745461044880,1.25793448,607.3,605.28,1.208]
[1745461047173,1.25793448,607.29,605.28,1.208]
[1745461048881,1.25793448,607.29,605.28,2.185]
[1745461049993,0.28721402,607.28,605.28,2.185]
[1745461050378,1.25793448,607.03,605.28,2.185]
[1745461052985,0.28724484,607.02,605.28,2.185]
[1745461054589,1.25793448,607.1,605.28,2.185]
[1745461055985,0.28723417,607.09,605.28,2.185]
[1745461060688,1.25793448,607.56,605.28,2.185]
[1745461061588,1.25793448,607.62,605.28,2.185]
[1745461061787,0.28713227,607.55,605.28,2.185]
[1745461063787,1.25793448,607.62,605.28,2.185]
[1745461064388,1.25793448,607.41,605.28,2.185]
[1745461064890,0.28715004,607.4,605.28,2.185]
[1745461066294,1.25793448,607.33,605.28,3.416]
[1745461068795,1.25793448,607.33,605.29,0.30323585]
[1745461069897,2.14023575,608.03,605.29,0.30323585]
[1745461069898,1.25793448,607.24,605.29,0.30323585]
[1745461070098,1.25793448,607.24,605.28,2.208]
[1745461070294,1.25793448,607.24,605.29,0.30323656]
[1745461070793,1.25793448,607.24,605.28,2.208]
[1745461071696,1.25793448,607.24,605.28,3.122]
[1745461071897,1.25793448,607.21,605.28,3.122]
[1745461072094,1.25793448,607.21,605.29,0.30323877]
[1745461073020,0.28714767,607.2,605.29,0.30323877]
[1745461073298,0.28714767,607.2,605.28,3.122]
[1745461073500,0.28714767,607.2,605.29,0.30319111]
[1745461075695,1.25793448,607.32,605.29,0.30319111]
[1745461076000,0.28713464,607.19,605.29,0.30319111]
[1745461076199,1.25793448,607.32,605.29,0.30319111]
[1745461076699,1.25793448,607.32,605.29,1.30519111]
[1745461076901,1.25793448,607.32,605.3,0.30319111]
[1745461077094,0.2871299,607.31,605.3,0.30319111]
[1745461078696,1.25793448,607.45,605.3,0.30319111]
[1745461078895,0.28711331,607.3,605.3,0.30319111]
[1745461079201,1.25793448,607.45,605.3,0.30319111]
[1745461080001,0.28711331,607.44,605.3,0.30319111]
[1745461081508,1.25793448,607.43,605.3,0.30319111]
[1745461082004,0.28711568,607.42,605.3,0.30319111]
[1745461084710,1.25793448,607.43,605.3,0.30319111]
[1745461084911,1.25793448,607.38,605.3,0.30319111]
[1745461088116,1.25793448,607.01,605.3,0.30319111]
[1745461088614,1.25793448,607.01,605.29,1.28911568]
[1745461089610,1.25793448,607.01,605.29,2.60011568]
[1745461090711,1.25793448,607.01,605.29,3.302]
[1745461091015,2.14023575,607.55,605.29,3.302]
[1745461091016,1.25793448,607.45,605.29,3.302]
[1745461092009,0.28714174,607.44,605.29,3.302]
[1745461093710,1.25793448,607.45,605.29,3.302]
[1745461094114,1.25793448,607.37,605.29,3.302]
[1745461095017,0.28712753,607.36,605.29,3.302]
[1745461096417,0.28712753,607.36,605.3,0.30320967]
[1745461096611,0.28712753,607.36,605.29,2.3]
[1745461096812,1.25793448,607.37,605.29,2.3]
[1745461097015,1.25793448,607.2,605.29,2.3]
[1745461097917,0.28717136,607.19,605.29,2.3]
[1745461098123,0.28717136,607.19,605.3,0.30323007]
[1745461098418,0.28717136,607.19,605.29,2.3]
[1745461098619,0.28717136,607.19,605.3,0.3032264]
[1745461099019,0.28717136,607.19,605.3,1.8212264]
[1745461099213,0.28717136,607.19,605.3,1.518]
[1745461099418,0.28717136,607.19,605.31,0.30322264]
[1745461099621,0.28717136,607.19,605.3,1.518]
[1745461099819,1.25793448,607.09,605.31,0.3031483]
[1745461100019,1.25793448,607.09,605.3,1.518]
[1745461100220,1.25793448,607.09,605.31,0.30314527]
[1745461101022,0.28712634,607.08,605.29,0.28712634]
[1745461101218,0.28712634,607.08,605.3,0.30314527]
[1745461102522,0.28712634,607.08,605.29,0.28712634]
[1745461102724,1.25793448,607.37,605.07,1.03538227]
[1745461102918,1.25793448,607.37,605.08,0.30316759]
[1745461103619,1.25793448,607.61,605.08,0.30316759]
[1745461103817,1.25793448,607.61,605.09,0.30316759]
[1745461104016,0.2871453,607.6,605.09,0.2871453]
[1745461104218,0.2871453,607.6,605.1,0.29849654]
[1745461104918,0.2871453,607.6,605.09,0.2871453]
[1745461105327,0.2871453,607.6,605.1,0.30322487]
[1745461105531,0.2871453,607.6,605.1,1.39522487]
[1745461105725,1.25793448,607.61,605.11,0.30322487]
[1745461105923,0.28713819,607.59,605.11,1.33422487]
[1745461106120,0.28713819,607.59,605.12,0.30322487]
[1745461106325,0.28713819,607.59,605.12,1.59522487]
[1745461106624,0.28713819,607.59,605.13,1.37022487]
[1745461106827,0.28713819,607.59,605.14,0.30322487]
[1745461107026,1.25793448,607.42,605.14,0.30322487]
[1745461109425,1.25793448,607.39,605.14,0.30322487]
[1745461109629,1.25793448,607.39,605.13,1.067]
[1745461109823,0.28716781,607.38,605.14,0.30323911]
[1745461111430,1.25793448,606.96,605.15,0.30323911]
[1745461111626,1.25793448,606.96,605.16,0.30323911]
[1745461111842,1.25793448,606.96,605.17,0.30323911]
[1745461112026,1.25793448,606.96,605.18,0.30323911]
[1745461112229,1.25793448,606.96,605.14,0.30323911]
[1745461112531,1.25793448,606.96,605.15,0.30323911]
[1745461112831,1.25793448,606.96,605.13,1.067]
[1745461113033,1.25793448,606.96,605.14,0.30305612]
[1745461114341,1.25793448,606.96,605.15,0.30305612]
[1745461114535,1.25793448,606.96,605.16,0.30305612]
[1745461114738,1.25793448,607.56,605.25,1.03538227]
[1745461114938,1.25793448,607.56,605.26,0.30305612]
[1745461115936,0.28700794,607.55,605.26,0.30305612]
[1745461116132,0.28700794,607.55,605.27,0.30299561]
[1745461116335,0.28700794,607.55,605.26,0.30299561]
[1745461116534,0.28700794,607.55,605.27,0.30299561]
[1745461116732,0.28700794,607.55,605.26,0.30299561]
[1745461116931,0.28700794,607.55,605.27,0.30299561]
[1745461117237,0.28700794,607.55,605.28,0.30299686]
[1745461117432,0.28700794,607.55,605.29,0.30299686]
[1745461117631,0.28700794,607.55,605.26,0.30299686]
[1745461117835,2.14023575,608.28,605.13,1.067]
[1745461117836,1.25793448,608.05,605.27,0.30299686]
[1745461118033,0.28700794,607.54,605.22,0.28700794]
[1745461118233,1.25793448,608.05,605.23,0.30299686]
[1745461119038,0.28695351,608.04,605.23,0.30299686]
[1745461119538,0.28695351,608.04,605.24,0.30299271]
[1745461119735,0.28695351,608.04,605.23,0.30299271]
[1745461123940,1.25793448,608.15,605.23,0.30299271]
[1745461124137,0.28695588,608.03,605.22,0.28695588]
[1745461124343,1.25793448,608.15,605.23,0.30299271]
[1745461125243,1.25793448,608.15,605.24,1.121]
[1745461125536,1.25793448,608.15,605.25,0.30299271]
[1745461125745,0.28695588,608.14,605.25,0.30299271]
[1745461129043,0.28695588,608.14,605.24,1.121]
[1745461129251,0.28695588,608.14,605.25,0.30309394]
[1745461129640,1.25793448,608.17,605.25,0.30309394]
[1745461129846,1.25793448,607.78,605.25,0.30309394]
[1745461130043,1.25793448,607.78,605.26,1.294]
[1745461130250,1.25793448,607.78,605.27,0.30309394]
[1745461130650,1.25793448,607.78,605.26,1.294]
[1745461130848,1.25793448,607.78,605.27,0.30309417]
[1745461132247,1.25793448,607.78,605.26,1.294]
[1745461132444,1.25793448,607.78,605.27,0.30310042]
[1745461132947,1.25793448,607.79,605.27,0.30310042]
[1745461133951,0.28704582,607.78,605.27,0.30310042]
[1745461135354,1.25793448,607.67,605.27,0.30310042]
[1745461136953,0.28706003,607.66,605.27,0.30310042]
[1745461138355,1.25793448,607.54,605.27,0.30310042]
[1745461139956,0.28709437,607.53,605.27,0.30310042]
[1745461140254,0.28709437,607.53,605.26,1.58109437]
[1745461140551,0.28709437,607.53,605.27,0.3031348]
[1745461141158,1.25793448,607.44,605.27,0.3031348]
[1745461142957,0.28708963,607.43,605.27,0.3031348]
[1745461144062,0.28708963,607.43,605.28,0.3031348]
[1745461144257,0.28708963,607.43,605.29,0.3031348]
[1745461144454,0.28708963,607.43,605.27,0.3031348]
[1745461144655,1.25793448,607.44,605.28,0.30311927]
[1745461144857,1.25793448,607.44,605.29,0.30311927]
[1745461145158,2.14023575,608.09,605.24,1.121]
[1745461145159,1.25793448,607.39,605.3,0.30311927]
[1745461145358,1.25793448,607.39,605.27,0.30311927]
[1745461145660,1.25793448,607.39,605.28,0.30311927]
[1745461145862,1.25793448,607.39,605.27,0.30311927]
[1745461146062,1.25793448,607.39,605.29,0.30311927]
[1745461146360,1.25793448,607.39,605.3,0.30311927]
[1745461146559,1.25793448,607.39,605.27,0.30311927]
[1745461146755,1.25793448,607.39,605.28,0.30311927]
[1745461147062,1.25793448,607.05,605.29,0.30311927]
[1745461148262,0.28713345,607.04,605.29,0.30311927]
[1745461150683,1.25793448,607.15,605.29,0.30311927]
[1745461150963,0.28711924,607.03,605.29,0.30311927]
[1745461151361,1.25793448,607.15,605.29,1.89911927]
[1745461151563,1.25793448,607.15,605.3,0.30311927]
[1745461152465,0.28709673,607.14,605.3,0.30311927]
[1745461154164,0.28709673,607.14,605.31,0.30304665]
[1745461154470,0.28709673,607.14,605.32,0.30304665]
[1745461154670,0.28709673,607.14,605.3,0.30304665]
[1745461156267,0.28709673,607.14,605.3,1.58504665]
[1745461156466,0.28709673,607.14,605.31,0.30304665]
[1745461156768,1.25793448,607.71,605.31,0.30304665]
[1745461157068,1.25793448,607.71,605.3,1.282]
[1745461157467,1.25793448,607.71,605.31,0.30309712]
[1745461158070,0.28704819,607.7,605.31,0.30309712]
[1745461158370,1.25793448,607.49,605.31,0.30309712]
[1745461160570,1.25793448,607.49,605.3,1.282]
[1745461160770,1.25793448,607.49,605.31,0.30311247]
[1745461161167,0.2870766,607.48,605.31,0.30311247]
[1745461161872,1.25793448,607.46,605.31,0.30311247]
[1745461163271,1.25793448,607.46,605.31,1.78211247]
[1745461163471,1.25793448,607.46,605.32,0.30311247]
[1745461163973,0.28703398,607.45,605.32,0.30311247]
[1745461165774,1.25793448,607.5,605.32,0.30311247]
[1745461166470,1.25793448,607.77,605.32,0.30311247]
[1745461166974,0.28699492,607.76,605.32,0.30311247]
[1745461167170,0.28699492,607.76,605.33,0.30303585]
[1745461167375,0.28699492,607.76,605.32,0.30303585]
[1745461167570,0.28699492,607.76,605.33,0.30303585]
[1745461167768,0.28699492,607.76,605.34,0.30303585]
[1745461167973,0.28699492,607.76,605.32,0.30303585]
[1745461168172,0.28699492,607.76,605.33,0.30303585]
[1745461168371,0.28699492,607.76,605.32,0.30303585]
[1745461168575,0.28699492,607.76,605.34,1.02]
[1745461168877,1.25793448,607.77,605.35,0.30303585]
[1745461169172,1.25793448,607.77,605.35,1.85103585]
[1745461169375,1.25793448,607.77,605.36,0.30303585]
[1745461169675,1.25793448,607.85,605.36,0.30303585]
[1745461169978,0.28699019,607.76,605.36,0.30303585]
[1745461170277,1.25793448,607.85,605.36,0.30303585]
[1745461171079,0.28698072,607.84,605.36,0.30303585]
[1745461171677,1.25793448,607.85,605.36,0.30303585]
[1745461172680,1.25793448,607.68,605.36,0.30303585]
[1745461173475,1.25793448,607.68,605.35,1.548]
[1745461173675,1.25793448,607.68,605.36,0.30302491]
[1745461175279,1.25793448,607.68,605.37,0.30298788]
[1745461175478,1.25793448,607.68,605.36,0.30298788]
[1745461175983,0.28698191,607.67,605.36,0.30298788]
[1745461176678,0.28698191,607.67,605.35,1.83498191]
[1745461176879,1.25793448,607.59,605.36,0.30298144]
[1745461177283,1.25793448,607.59,605.35,1.83498191]
[1745461177483,1.25793448,607.59,605.36,0.30298227]
[1745461178383,1.25793448,607.59,605.35,1.548]
[1745461178585,1.25793448,607.59,605.36,0.30297713]
[1745461178986,0.28699256,607.58,605.36,0.30297713]
[1745461180787,1.25793448,607.78,605.36,0.30297713]
[1745461182182,0.28695824,607.77,605.37,0.30297713]
[1745461182386,0.28695824,607.77,605.38,1.03538227]
[1745461182585,0.28695824,607.77,605.39,0.30297713]
[1745461183794,1.25793448,607.85,605.39,0.30297713]
[1745461183982,0.28693458,607.76,605.39,0.30297713]
[1745461184384,1.25793448,607.85,605.39,0.30297713]
[1745461184590,1.25793448,607.85,605.4,1.588]
[1745461184788,1.25793448,607.85,605.41,0.30297713]
[1745461184989,0.28693222,607.84,605.42,0.30292753]
[1745461185285,1.5448667,607.84,605.42,1.03538227]
[1745461185490,1.5448667,607.84,605.43,0.30292753]
[1745461186290,1.5448667,607.84,605.43,1.45592753]
[1745461186490,1.5448667,607.84,605.44,0.30292753]
[1745461186786,1.25793448,607.84,605.44,0.30292753]
[1745461187791,1.25793448,607.93,605.44,0.30292753]
[1745461187991,0.28693222,607.83,605.44,0.30292753]
[1745461188291,1.25793448,607.93,605.44,0.30292753]
[1745461189592,0.28692157,607.92,605.43,2.36]
[1745461189791,0.28692157,607.92,605.44,0.3029441]
[1745461190188,0.28692157,607.92,605.45,1.472]
[1745461190389,0.28692157,607.92,605.46,0.3029441]
[1745461190792,1.54485605,607.92,605.46,0.3029441]
[1745461192791,1.25793448,607.78,605.45,1.472]
[1745461192997,1.25793448,607.78,605.46,0.30295252]
[1745461194095,0.28693222,607.77,605.46,0.30295252]
[1745461196002,0.28693222,607.77,605.45,1.472]
[1745461196202,0.28693222,607.77,605.46,0.30293753]
[1745461200408,1.25793448,607.76,605.46,0.30293753]
[1745461201911,0.28694641,607.75,605.46,0.30293753]
[1745461203014,1.25793448,607.7,605.49,1.03538227]
[1745461203311,1.25793448,607.7,605.5,0.30293753]
[1745461206013,0.28695351,607.69,605.5,0.30293753]
[1745461206212,0.28695351,607.69,605.51,1.483]
[1745461206414,0.28695351,607.69,605.52,0.30293753]
[1745461206914,0.28695351,607.69,605.53,0.30295785]
[1745461207114,0.28695351,607.69,605.52,0.30295785]
[1745461208320,0.28695351,607.69,605.52,1.64495785]
[1745461208619,0.28695351,607.69,605.53,0.30295785]
[1745461210823,1.25793448,607.85,605.53,0.30295785]
[1745461211624,1.25793448,607.84,605.53,0.30295785]
[1745461212023,0.2869334,607.83,605.53,0.30295785]
[1745461213720,1.25793448,607.67,605.53,0.30295785]